bitfinex/quotes_ETHUSD_20250806
["timestamp","ask_amount","ask_price","bid_price","bid_amount"]
[1754455711816,0.001,3575.1,3575.0,2.79720279]
[1754455712017,4.251,3575.1,3575.0,2.79720279]
[1754455712195,4.251,3575.1,3575.0,3.36190279]
[1754455712815,4.251,3575.1,3575.0,2.79720279]
[1754455714535,4.7133,3575.1,3575.0,2.79720279]
[1754455714685,4.251,3575.1,3575.0,2.79720279]
[1754455715025,4.251,3575.1,3575.0,3.41045565]
[1754455716419,4.251,3575.1,3575.0,2.79720279]
[1754455716724,4.7133,3575.1,3575.0,2.79720279]
[1754455717230,4.251,3575.1,3575.0,2.79720279]
[1754455719334,4.251,3575.1,3575.0,3.36190279]
[1754455720401,4.251,3575.1,3575.0,2.79720279]
[1754455721111,0.001,3575.1,3575.0,2.79720279]
[1754455721330,4.251,3575.1,3575.0,3.4669255]
[1754455723531,0.001,3575.1,3575.0,4.1716255]
[1754455723840,4.251,3575.1,3575.0,7.1716255]
[1754455724190,0.001,3575.1,3575.0,7.1716255]
[1754455724394,4.251,3575.1,3575.0,7.1716255]
[1754455724990,0.001,3575.2,3575.1,5.79712455]
[1754455725242,0.001,3575.2,3575.1,31.90945487]
[1754455725458,1.50519292,3575.5,3575.4,5.79688985]
[1754455725596,5.75519292,3575.5,3575.4,5.79688985]
[1754455725797,5.75519292,3575.5,3575.4,6.50158985]
[1754455726600,1.50519292,3575.5,3575.4,6.50158985]
[1754455726926,1.50519292,3575.5,3575.4,9.23025171]
[1754455728499,1e-08,3575.5,3575.4,9.23025171]
[1754455728898,1e-08,3575.6,3575.5,5.79681163]
[1754455729099,1e-08,3575.6,3575.5,30.29273451]
[1754455730322,6.72,3576.2,3576.1,5.79634238]
[1754455730576,0.001,3576.2,3576.1,7.12892012]
[1754455730737,0.001,3576.2,3576.1,7.36032012]
[1754455732475,0.5061,3576.9,3576.8,2.79579512]
[1754455732476,0.04,3576.9,3576.8,2.79579512]
[1754455732634,4.289,3576.9,3576.8,2.79579512]
[1754455732828,4.289,3576.9,3576.8,5.17755368]
[1754455733627,4.289,3576.9,3576.8,8.17755368]
[1754455734478,4.289,3576.9,3576.8,8.40895368]
[1754455734703,4.289,3576.9,3576.8,8.74225368]
[1754455735692,4.289,3576.9,3576.8,8.17755368]
[1754455736057,4.289,3576.9,3576.8,8.40895368]
[1754455736305,4.289,3576.9,3576.8,8.74225368]
[1754455736458,0.04,3576.9,3576.8,8.74225368]
[1754455737364,0.4661,3577.6,3577.5,2.79524807]
[1754455737599,4.7141,3577.6,3577.5,2.79524807]
[1754455737908,4.248,3577.6,3577.5,3.08877288]
[1754455738216,0.04,3577.9,3577.8,2.79501369]
[1754455738359,5.2,3577.9,3577.8,2.79501369]
[1754455739095,0.04,3577.9,3577.8,2.79501369]
[1754455739296,4.287,3577.9,3577.8,2.79501369]
[1754455739465,4.287,3577.9,3577.8,3.67690297]
[1754455740358,4.7531,3577.9,3577.8,3.67690297]
[1754455740562,5.199,3577.9,3577.8,2.79501369]
[1754455741061,5.199,3577.9,3577.5,0.14]
[1754455741260,0.912,3577.8,3577.5,0.14]
[1754455741475,0.912,3577.8,3577.7,2.79509181]
[1754455741919,0.04,3577.9,3577.8,2.79501369]
[1754455742078,4.7531,3577.9,3577.8,2.93501369]
[1754455742278,4.287,3577.9,3577.8,3.50803126]
[1754455743210,5.199,3577.9,3577.8,2.93501369]
[1754455744602,5.199,3577.9,3577.6,2.79515865]
[1754455744603,5.199,3577.9,3577.6,2.79509885]
[1754455744916,0.912,3577.8,3577.6,2.79511221]
[1754455745084,0.14,3577.8,3577.6,2.79511221]
[1754455745274,0.912,3577.7,3577.6,2.79511221]
[1754455749520,0.4661,3577.7,3577.6,3.36814955]
[1754455749814,0.04,3577.9,3577.8,2.79501369]
[1754455750016,4.286,3577.9,3577.8,2.79501369]
[1754455750201,4.7521,3577.9,3577.8,2.79501369]
[1754455750523,4.7521,3577.9,3577.8,2.93501369]
[1754455750912,5.198,3577.9,3577.8,2.93501369]
[1754455752503,5.198,3577.9,3577.8,0.14]
[1754455752694,5.198,3577.9,3577.7,2.79506906]
[1754455752883,4.286,3577.9,3577.7,2.79506906]
[1754455753086,0.9235,3577.8,3577.7,2.79506906]
[1754455753921,0.9235,3577.8,3576.9,3.0]
[1754455754082,0.14,3577.8,3577.4,2.79526334]
[1754455754281,0.9235,3577.7,3577.4,2.79526334]
[1754455754486,0.9235,3577.7,3577.1,2.79549433]
[1754455754487,5.1685,3577.6,3577.3,2.79538589]
[1754455754712,0.9235,3577.5,3577.3,2.79538589]
[1754455754916,4.385,3577.6,3577.4,2.79532621]
[1754455755225,4.385,3577.6,3577.5,2.79524807]
[1754455755529,4.8626,3577.6,3577.5,2.79524807]
[1754455755911,5.3085,3577.6,3577.5,2.79524807]
[1754455756308,4.7226,3577.6,3577.5,2.79524807]
[1754455756496,0.001,3577.8,3577.7,2.79509181]
[1754455756697,4.246,3577.8,3577.7,2.79509181]
[1754455757116,4.7236,3577.8,3577.7,2.79509181]
[1754455757653,5.1695,3577.8,3577.5,2.93518541]
[1754455757802,4.246,3577.8,3577.5,2.93518541]
[1754455758002,0.9235,3577.7,3577.5,2.93518541]
[1754455758514,0.9235,3577.6,3577.5,2.93518541]
[1754455758712,0.9235,3577.6,3577.5,0.14]
[1754455758911,0.9235,3577.6,3576.9,3.0]
[1754455759208,4.7226,3577.5,3577.4,2.79524934]
[1754455759624,4.245,3577.5,3577.4,2.79524934]
[1754455760346,4.7226,3577.5,3577.4,2.79524934]
[1754455761097,5.1685,3577.5,3577.4,2.79524934]
[1754455762308,4.7226,3577.5,3577.4,2.79524934]
[1754455764057,4.245,3577.5,3577.4,3.368316]
[1754455764255,0.141,3577.8,3577.7,2.79509181]
[1754455764256,0.001,3577.8,3577.7,2.79509181]
[1754455764454,4.246,3577.8,3577.7,2.79509181]
[1754455764606,4.7236,3577.8,3577.7,2.79509181]
[1754455769348,0.4786,3577.8,3577.7,2.79509181]
[1754455769543,5.1695,3577.8,3576.4,0.5647]
[1754455769844,0.9235,3577.7,3577.5,2.79517976]
[1754455770043,5.1685,3577.6,3577.5,2.79517976]
[1754455770247,5.1685,3577.6,3577.4,2.79531128]
[1754455770549,0.9235,3577.5,3577.4,2.79531128]
[1754455780788,0.9235,3577.5,3577.2,2.93547591]
[1754455780988,4.245,3577.4,3577.3,2.79540435]
[1754455781191,5.1685,3577.4,3577.3,2.79540435]
[1754455784890,4.7226,3577.4,3577.3,2.79540435]
[1754455785390,4.245,3577.4,3577.3,3.36849418]
[1754455787285,5.1829,3577.4,3577.3,2.79540435]
[1754455787617,5.1829,3577.4,3576.9,0.002]
[1754455787796,1.0779,3577.3,3576.9,0.002]
[1754455787962,0.14,3577.1,3576.9,0.002]
[1754455788166,4.244,3577.0,3576.9,0.002]
[1754455788365,5.1819,3577.0,3576.9,0.002]
[1754455788974,5.1819,3577.0,3576.9,2.79771696]
[1754455789716,5.1819,3577.0,3576.9,0.002]
[1754455791905,5.71409,3577.0,3576.9,0.002]
[1754455796717,38.5097288,3577.0,3576.9,0.002]
[1754455797376,35.71409,3577.0,3576.9,0.002]
[1754455798217,35.1819,3577.0,3576.9,0.002]
[1754455800105,5.1819,3577.0,3576.9,0.002]
[1754455800275,37.9775388,3577.0,3576.9,0.002]
[1754455800681,35.1819,3577.0,3576.9,0.002]
[1754455801089,5.1819,3577.0,3576.9,0.002]
[1754455801391,35.1819,3577.0,3576.9,0.002]
[1754455801590,34.7099,3577.0,3576.9,0.002]
[1754455801792,35.1819,3577.0,3576.9,0.002]
[1754455802778,30.0,3577.0,3576.9,0.002]
[1754455803133,0.001,3577.4,3577.1,2.79551013]
[1754455803329,4.245,3577.3,3577.2,2.79546425]
[1754455803541,4.7109,3577.3,3577.2,2.79546425]
[1754455803883,4.245,3577.3,3577.2,2.79546425]
[1754455804609,4.7109,3577.3,3577.2,2.79546425]
[1754455805920,4.245,3577.3,3577.2,2.79546425]
[1754455806222,4.245,3577.3,3577.2,3.36877361]
[1754455807319,0.141,3577.4,3577.3,2.79540435]
[1754455807609,4.8519,3577.4,3577.2,0.57330936]
[1754455807815,0.4659,3577.3,3577.2,3.36878491]
[1754455807983,0.4659,3577.3,3577.2,0.57330936]
[1754455808184,0.9379,3577.3,3577.2,0.57330936]
[1754455808711,0.9379,3577.3,3577.2,2.7954825]
[1754455808712,0.4659,3577.3,3577.2,2.7954825]
[1754455808892,4.386,3577.4,3577.3,2.79540435]
[1754455809088,4.8519,3577.4,3577.3,2.79540435]
[1754455809515,0.141,3577.4,3577.3,2.79540435]
[1754455809716,4.245,3577.4,3577.3,3.36010435]
[1754455809921,4.245,3577.4,3577.3,4.26921935]
[1754455810307,4.245,3577.4,3577.3,3.70451935]
[1754455810505,4.7109,3577.4,3577.3,3.70451935]
[1754455810943,5.1829,3577.4,3577.3,3.70451935]
[1754455811108,5.1829,3577.4,3577.3,2.79540435]
[1754455811310,5.3229,3577.4,3577.3,2.79540435]
[1754455815346,4.385,3577.4,3577.3,2.79540435]
[1754455819122,0.141,3577.4,3577.3,2.79540435]
[1754455819433,4.245,3577.4,3577.3,2.79540435]
[1754455819633,4.245,3577.4,3577.3,3.42496436]
[1754455820347,5.1702,3577.4,3577.3,3.42496436]
[1754455820551,4.8561,3577.4,3577.3,2.79540435]
[1754455821052,4.385,3577.4,3577.3,2.79540435]
[1754455823470,0.141,3577.4,3577.3,2.79540435]
[1754455823669,4.244,3577.4,3577.3,2.79540435]
[1754455825542,4.244,3577.4,3577.3,3.36010435]
[1754455825862,4.244,3577.4,3577.3,3.98966934]
[1754455826245,4.244,3577.4,3577.3,3.42496934]
[1754455827356,0.001,3577.4,3577.3,3.42496934]
[1754455827573,4.244,3577.4,3577.3,3.42496934]
[1754455827766,4.244,3577.4,3577.3,3.98966934]
[1754455828675,0.001,3577.4,3577.3,3.98966934]
[1754455831179,0.001,3577.4,3577.3,6.42496934]
[1754455831368,0.001,3577.4,3577.3,6.98966934]
[1754455832296,0.001,3577.4,3577.3,6.65636934]
[1754455832501,0.001,3577.4,3577.3,6.98966934]
[1754455835180,0.001,3577.4,3577.3,6.42496934]
[1754455836895,0.001,3577.4,3577.3,6.65636934]
[1754455837249,0.001,3577.8,3577.7,2.79509181]
[1754455837559,0.001,3577.8,3577.7,3.4941192]
[1754455841470,0.4721,3577.8,3577.7,3.4941192]
[1754455842559,0.001,3577.8,3577.7,3.4941192]
[1754455842899,0.001,3578.0,3577.8,2.79501369]
[1754455843100,1e-08,3578.0,3577.9,8.55154678]
[1754455843300,1e-08,3578.2,3578.1,2.79477935]
[1754455843459,0.001,3578.5,3578.4,5.79454504]
[1754455843872,0.001,3578.5,3578.4,5.93454504]
[1754455844078,0.001,3578.5,3578.4,7.14341115]
[1754455848371,0.4869,3578.5,3578.4,7.14341115]
[1754455848571,0.9516,3578.5,3578.4,5.93454504]
[1754455851094,0.9516,3578.5,3578.4,5.79454504]
[1754455851414,0.9516,3578.5,3578.4,5.93454504]
[1754455855175,0.9516,3578.5,3578.4,2.79454504]
[1754455856222,0.9516,3578.5,3578.1,0.14]
[1754455856404,0.14,3578.3,3578.1,2.79475578]
[1754455856615,0.14,3578.3,3577.8,0.14]
[1754455856616,4.7047,3578.2,3577.8,0.14]
[1754455856910,0.9506,3578.1,3577.8,2.93499772]
[1754455857114,0.9506,3578.0,3577.8,0.14]
[1754455857416,0.9506,3578.0,3577.6,2.79509729]
[1754455857417,0.14,3577.9,3577.6,2.79509729]
[1754455857790,0.14,3577.9,3577.3,0.14]
[1754455857791,0.9506,3577.9,3577.3,2.79540435]
[1754455858109,0.14,3577.6,3577.4,2.79525338]
[1754455858309,5.1906,3577.5,3577.4,2.79525338]
[1754455858515,4.7259,3577.5,3577.4,2.79525338]
[1754455858825,5.1906,3577.5,3577.4,2.79525338]
[1754455863683,5.1906,3577.5,3577.2,2.79546996]
[1754455863879,4.24,3577.5,3577.4,2.79532621]
[1754455864192,4.24,3577.5,3577.1,2.79550189]
[1754455864395,0.14,3577.3,3577.1,2.79550189]
[1754455864599,0.14,3577.3,3577.2,2.7954825]
[1754455864906,4.38,3577.3,3577.2,2.7954825]
[1754455865308,5.3306,3577.3,3577.2,2.7954825]
[1754455865612,5.3306,3577.3,3577.1,2.79553636]
[1754455865845,4.38,3577.3,3577.2,2.7954825]
[1754455865995,4.24,3577.3,3577.2,2.7954825]
[1754455866328,4.38,3577.3,3577.2,2.7954825]
[1754455866499,5.3306,3577.3,3577.2,2.7954825]
[1754455866701,0.14,3577.3,3577.2,2.7954825]
[1754455866936,4.16743591,3578.4,3577.5,2.79522452]
[1754455866937,0.4647,3577.6,3577.5,2.79522452]
[1754455867232,4.7047,3577.6,3577.5,2.79522452]
[1754455867400,5.3306,3577.6,3577.5,2.79522452]
[1754455868921,0.14,3577.6,3577.5,2.79522452]
[1754455869098,0.14,3577.6,3577.5,3.63382002]
[1754455869099,4.38,3577.6,3577.5,3.63382002]
[1754455869511,5.1906,3577.6,3577.5,2.79522452]
[1754455869715,5.1906,3577.6,3576.9,0.002]
[1754455869716,5.3306,3577.6,3576.9,0.002]
[1754455869917,0.14,3577.3,3577.1,2.79548925]
[1754455870117,4.24,3577.2,3577.1,2.79548925]
[1754455870320,5.1906,3577.2,3577.1,2.79548925]
[1754455873052,5.1906,3577.2,3577.1,2.79748925]
[1754455880806,5.1906,3577.2,3577.1,0.002]
[1754455880807,4.7259,3577.2,3577.1,0.002]
[1754455880964,4.7259,3577.2,3577.1,2.79756064]
[1754455881466,5.189,3577.2,3577.1,2.79756064]
[1754455881662,5.189,3577.2,3577.1,0.002]
[1754455882067,5.189,3577.2,3577.1,2.79756064]
[1754455882967,5.189,3577.2,3577.1,0.002]
[1754455883635,5.189,3577.2,3577.1,2.79756064]
[1754455884470,4.7259,3577.2,3577.1,2.79756064]
[1754455884705,4.24,3577.2,3577.1,3.6570875]
[1754455885000,4.24,3577.2,3577.1,4.2217875]
[1754455885312,4.24,3577.2,3577.1,3.6570875]
[1754455887498,5.1892,3577.2,3577.1,2.79756064]
[1754455889699,4.24,3577.2,3577.1,7.07756064]
[1754455890006,4.24,3577.2,3577.1,10.07756064]
[1754455891000,2.79468911,3578.3,3577.2,3.0]
[1754455891165,0.14,3577.6,3577.3,2.79537235]
[1754455891367,0.14,3577.6,3577.5,2.79519097]
[1754455891677,0.14,3577.6,3577.4,2.79532274]
[1754455891678,0.4631,3577.5,3577.4,2.79532274]
[1754455892065,4.38,3577.6,3577.5,2.79524807]
[1754455892479,4.34,3577.6,3577.5,2.79524807]
[1754455892766,0.1,3577.6,3577.5,5.79524807]
[1754455892993,0.14,3578.0,3577.8,2.79497059]
[1754455893193,0.14,3578.0,3577.8,3.25237059]
[1754455893194,4.24,3577.9,3577.8,3.25237059]
[1754455893393,4.24,3577.9,3577.8,2.79497059]
[1754455893864,0.14,3578.0,3577.9,2.79493557]
[1754455894065,4.38,3578.0,3577.9,2.79493557]
[1754455894798,4.8431,3578.0,3577.6,2.79516994]
[1754455895370,4.8431,3578.0,3577.9,2.79493557]
[1754455895764,4.38,3578.0,3577.9,2.79493557]
[1754455896283,0.6031,3578.0,3577.8,2.79499296]
[1754455896482,4.24,3577.9,3577.8,2.79499296]
[1754455897801,0.6031,3578.0,3577.8,2.79499296]
[1754455897802,0.14,3578.0,3577.9,2.79493557]
[1754455898102,4.38,3578.0,3577.9,2.79493557]
[1754455898266,4.8431,3578.0,3577.9,2.79493557]
[1754455898704,4.38,3578.0,3577.9,2.79493557]
[1754455901767,4.8661,3578.0,3577.9,2.79493557]
[1754455902789,5.3179,3578.0,3577.8,2.79499467]
[1754455903197,4.38,3578.0,3577.9,2.79493557]
[1754455903604,4.8618,3578.0,3577.9,2.79493557]
[1754455903809,4.38,3578.0,3577.9,2.79493557]
[1754455905392,4.8618,3578.0,3577.9,2.79493557]
[1754455905593,0.14,3578.0,3577.9,2.79493557]
[1754455905807,0.14,3578.0,3577.9,28.21645463]
[1754455905984,4.38,3578.0,3577.9,28.21645463]
[1754455906389,4.24,3578.0,3577.9,28.21645463]
[1754455906706,4.24,3578.0,3577.9,28.35645463]
[1754455908790,4.24,3578.0,3577.9,32.63645463]
[1754455910209,0.4818,3578.5,3578.3,2.79462314]
[1754455910384,0.6218,3578.5,3578.4,2.79454504]
[1754455910590,4.8608,3578.5,3578.4,7.07454504]
[1754455912616,5.3126,3578.5,3578.4,7.07454504]
[1754455918081,1.0736,3578.5,3578.4,7.07454504]
[1754455918278,5.3126,3578.5,3578.4,7.07454504]
[1754455920028,38.63852695,3578.5,3578.4,4.28]
[1754455920609,2.79464489,3578.3,3577.6,2.79514624]
[1754455920821,0.14,3577.8,3577.7,2.79506071]
[1754455921016,5.3116,3577.8,3577.7,2.79506071]
[1754455921335,0.14,3578.1,3577.7,1.91833048]
[1754455921616,0.4818,3578.5,3578.2,2.79467598]
[1754455921822,4.6898,3578.4,3578.1,2.79475237]
[1754455922023,0.14,3578.2,3578.1,2.79475237]
[1754455922237,4.379,3578.2,3578.0,2.7948412]
[1754455922438,0.9336,3578.1,3577.9,2.79493238]
[1754455922651,4.238,3578.0,3577.6,4.28]
[1754455922854,0.14,3577.8,3577.6,4.28]
[1754455923056,4.238,3577.7,3577.6,7.07516994]
[1754455923348,5.1716,3577.7,3577.6,7.07516994]
[1754455923837,4.7198,3577.7,3577.6,7.07516994]
[1754455924134,4.238,3577.7,3577.6,7.07516994]
[1754455924305,0.14,3577.8,3577.7,2.79509181]
[1754455924505,4.378,3577.8,3577.7,2.79509181]
[1754455925542,4.8598,3577.8,3577.7,2.79509181]
[1754455925929,4.378,3577.8,3577.7,2.79509181]
[1754455926635,4.378,3577.8,3577.7,7.07509181]
[1754455930252,4.8298,3577.8,3577.7,7.07509181]
[1754455930422,5.3116,3577.8,3577.7,7.07509181]
[1754455931346,4.8598,3577.8,3577.7,7.07509181]
[1754455931549,5.3116,3577.8,3577.7,7.07509181]
[1754455932047,4.378,3577.8,3577.7,7.07509181]
[1754455932431,4.378,3577.8,3577.7,2.79509181]
[1754455932638,5.3277,3577.8,3577.7,2.79509181]
[1754455934055,4.8598,3577.8,3577.7,2.79509181]
[1754455934671,5.3277,3577.8,3577.7,2.79509181]
[1754455936663,4.8598,3577.8,3577.7,2.79509181]
[1754455936865,4.378,3577.8,3577.7,2.79509181]
[1754455937381,4.378,3577.8,3577.7,3.27579181]
[1754455937560,4.378,3577.8,3577.7,2.79509181]
[1754455938235,0.14,3577.8,3577.7,8.99587057]
[1754455938484,0.001,3578.4,3578.2,2.79468574]
[1754455938685,4.7309,3578.3,3578.2,2.79468574]
[1754455938977,4.8709,3578.3,3578.2,2.79468574]
[1754455939967,0.14,3578.3,3578.2,2.79468574]
[1754455940144,4.378,3578.3,3578.2,2.79468574]
[1754455940551,4.8709,3578.3,3578.2,2.79468574]
[1754455941310,4.378,3578.3,3578.2,2.79468574]
[1754455941523,4.378,3578.3,3578.2,3.27538574]
[1754455941524,0.14,3578.3,3578.2,3.27538574]
[1754455941668,0.141,3578.4,3578.3,2.79462314]
[1754455942004,4.379,3578.4,3578.3,2.79462314]
[1754455942896,4.379,3578.4,3578.2,2.794676]
[1754455943094,0.9608,3578.3,3578.1,2.79477353]
[1754455943465,1.1008,3578.2,3578.1,2.79477353]
[1754455943910,31.63478,3578.2,3577.5,2.79520837]
[1754455944112,0.14,3578.0,3577.5,2.79520837]
[1754455944308,34.238,3578.1,3577.4,2.79532017]
[1754455944309,0.14,3577.8,3577.4,2.79532017]
[1754455944517,4.378,3577.8,3577.3,1.073]
[1754455944728,4.8709,3577.8,3577.3,1.073]
[1754455945245,5.3388,3577.8,3577.5,2.79522533]
[1754455946028,5.3388,3577.8,3577.6,2.79516476]
[1754455946523,4.8709,3577.8,3577.7,7.07509181]
[1754455946717,4.8709,3577.8,3577.7,4.28]
[1754455947227,5.3388,3577.8,3577.4,2.79531078]
[1754455947423,0.9608,3577.7,3577.4,2.79531078]
[1754455947586,4.378,3577.6,3577.4,2.79531078]
[1754455947790,0.4929,3577.5,3577.4,2.79531078]
[1754455948830,4.378,3577.6,3577.5,2.79524807]
[1754455949027,4.8709,3577.6,3577.2,4.282]
[1754455949330,0.4929,3577.5,3577.4,2.7953012]
[1754455951526,4.378,3577.6,3577.5,2.79524807]
[1754455951728,4.8709,3577.6,3577.5,2.79524807]
[1754455952237,4.378,3577.6,3577.5,2.79524807]
[1754455953126,4.378,3577.6,3577.5,7.07524807]
[1754455953321,4.8709,3577.6,3577.5,7.07524807]
[1754455955242,4.378,3577.6,3577.5,7.07524807]
[1754455955838,0.001,3577.8,3577.7,2.79509181]
[1754455956039,4.239,3577.8,3577.7,2.79509181]
[1754455956406,4.239,3577.8,3577.7,3.72809181]
[1754455958242,0.001,3577.8,3577.7,3.72809181]
[1754455958411,4.239,3577.8,3577.7,3.72809181]
[1754455958741,4.239,3577.8,3577.7,6.45675367]
[1754455958929,4.239,3577.8,3577.7,10.73675367]
[1754455963039,4.239,3577.8,3577.7,10.87675367]
[1754455964624,0.001,3577.8,3577.7,10.87675367]
[1754455966671,0.001,3578.2,3578.1,2.79477935]
[1754455967122,0.4494,3578.2,3578.1,2.79477935]
[1754455967322,0.4611,3578.2,3578.1,2.79477935]
[1754455968264,0.001,3578.2,3578.1,3.35374434]
[1754455968764,0.001,3578.2,3578.1,4.27774434]
[1754455968765,4.238,3578.2,3578.1,4.27774434]
[1754455970564,4.238,3578.2,3578.1,3.35374434]
[1754455971765,4.238,3578.2,3578.1,7.63374434]
[1754455972658,4.238,3578.2,3578.1,8.55774434]
[1754455974667,4.238,3578.2,3578.1,7.63374434]
[1754455975771,4.238,3578.2,3578.1,4.27774434]
[1754455976130,0.001,3578.2,3578.1,4.27774434]
[1754455976754,0.001,3578.2,3578.1,4.41774434]
[1754455977174,0.001,3578.2,3578.1,3.95484434]
[1754455977347,0.001,3578.2,3578.1,3.49374434]
[1754455978393,0.001,3578.2,3578.1,2.93477935]
[1754455978546,0.4611,3578.2,3578.1,2.93477935]
[1754455979686,0.001,3578.2,3578.1,2.93477935]
[1754455980585,0.001,3578.2,3578.1,3.85877935]
[1754455980769,0.001,3578.2,3578.1,7.21477935]
[1754455980951,0.001,3578.2,3578.1,8.30834434]
[1754455981368,0.4611,3578.2,3578.1,8.30834434]
[1754455981873,0.001,3578.2,3578.1,8.30834434]
[1754455986248,0.001,3578.2,3578.1,9.23234434]
[1754455986654,0.001,3578.2,3578.1,8.30834434]
[1754455987085,0.4611,3578.2,3578.1,8.30834434]
[1754455987299,0.4611,3578.2,3578.1,7.21477935]
[1754455987464,0.4611,3578.2,3578.1,7.07477935]
[1754455987465,0.9095,3578.2,3578.1,7.07477935]
[1754455990253,0.9095,3578.2,3578.1,4.28]
[1754455990452,1.0495,3578.2,3578.1,4.28]
[1754455990662,1.0495,3578.2,3577.9,4.28]
[1754455990864,5.1445,3578.1,3577.9,4.28]
[1754455991158,1.0485,3578.0,3577.8,0.002]
[1754455991354,3.84341488,3578.0,3577.8,0.002]
[1754455991586,0.9085,3577.9,3577.8,0.002]
[1754455992106,3.70343557,3577.9,3577.8,0.002]
[1754455992254,4.79096268,3577.9,3577.8,0.002]
[1754455993257,61.72218556,3577.9,3577.8,0.002]
[1754455994661,62.27218556,3577.9,3577.8,0.002]
[1754455995456,38.34096268,3577.9,3577.8,0.002]
[1754455997093,38.45290968,3577.9,3577.8,0.002]
[1754455997468,42.68890968,3577.9,3577.8,0.002]
[1754456001925,42.27240968,3577.9,3577.8,0.002]
[1754456002479,42.71046268,3577.9,3577.8,0.002]
[1754456004278,12.71046268,3577.9,3577.8,0.002]
[1754456004484,42.71046268,3577.9,3577.8,0.002]
[1754456004817,37.34876268,3577.9,3577.8,0.002]
[1754456005008,41.72576268,3577.9,3577.8,0.002]
[1754456005198,42.16046268,3577.9,3577.8,0.002]
[1754456007718,34.22752711,3577.9,3577.8,0.002]
[1754456007924,38.46452711,3577.9,3577.8,0.002]
[1754456008506,34.377,3577.9,3577.8,0.002]
[1754456008714,34.377,3577.9,3577.8,0.9304]
[1754456010291,4.377,3577.9,3577.8,3.72541369]
[1754456012533,0.14,3577.9,3577.8,8.00541369]
[1754456012728,6.711,3578.0,3577.9,2.79493557]
[1754456013025,10.948,3578.0,3577.9,2.79493557]
[1754456013389,10.948,3578.0,3577.9,3.72333557]
[1754456014900,10.95,3578.0,3577.9,3.72333557]
[1754456015807,0.001,3578.2,3578.1,2.79477935]
[1754456016011,4.239,3578.2,3578.1,2.93477935]
[1754456016248,4.239,3578.2,3578.1,3.86317935]
[1754456017348,0.001,3578.2,3578.1,3.86317935]
[1754456021068,0.001,3578.2,3578.1,8.14317935]
[1754456021264,0.001,3578.2,3578.1,10.87184121]
[1754456021468,0.001,3578.2,3578.1,9.94344121]
[1754456023071,0.001,3578.2,3578.1,9.80344121]
[1754456023276,0.001,3578.2,3578.1,7.07477935]
[1754456027908,0.001,3578.2,3578.1,10.99187935]
[1754456029794,0.001,3578.2,3578.1,7.07477935]
[1754456030896,0.001,3578.2,3578.1,7.52767935]
[1754456031705,0.001,3578.2,3578.1,2.79477935]
[1754456032995,1.0699,3578.2,3578.0,7.07479566]
[1754456033194,0.5956,3578.2,3578.0,7.07479566]
[1754456033514,0.9289,3578.1,3578.0,4.28]
[1754456035020,0.9289,3578.1,3578.0,7.07485746]
[1754456035906,0.9289,3578.1,3578.0,2.79485746]
[1754456037113,0.9289,3578.1,3577.9,2.79491022]
[1754456037283,0.141,3578.2,3577.9,2.79491022]
[1754456037484,0.9289,3578.1,3578.0,2.79485746]
[1754456038718,0.9289,3578.1,3577.8,0.002]
[1754456038885,0.9289,3578.0,3577.8,0.002]
[1754456039079,4.376,3577.9,3577.8,0.002]
[1754456039412,5.3049,3577.9,3577.8,0.002]
[1754456041921,5.3049,3577.9,3577.8,2.79701369]
[1754456041922,0.14,3577.9,3577.8,2.79701369]
[1754456042217,4.376,3577.9,3577.8,2.79701369]
[1754456042626,4.8306,3577.9,3577.8,2.79701369]
[1754456042786,4.376,3577.9,3577.8,2.79701369]
[1754456043690,0.14,3577.9,3577.8,2.79701369]
[1754456043890,0.14,3577.9,3577.8,4.32032327]
[1754456043891,4.236,3577.9,3577.8,4.32032327]
[1754456044700,4.236,3577.9,3577.8,3.71411369]
[1754456044906,0.14,3578.0,3577.9,2.79493557]
[1754456045204,4.376,3578.0,3577.9,2.79493557]
[1754456045587,0.14,3578.0,3577.9,2.79493557]
[1754456045791,4.376,3578.0,3577.9,2.79493557]
[1754456047501,0.14,3578.0,3577.9,3.24783557]
[1754456047697,4.376,3578.0,3577.9,3.24783557]
[1754456049017,4.376,3578.0,3577.9,2.79493557]
[1754456050794,4.376,3578.0,3577.9,7.07493557]
[1754456050998,0.001,3578.2,3578.1,2.79477935]
[1754456051232,4.377,3578.2,3578.1,2.79477935]
[1754456052714,5.3066,3578.2,3578.1,2.79477935]
[1754456054033,35.3066,3578.2,3577.9,7.07487516]
[1754456054338,0.14,3578.0,3577.9,7.07487516]
[1754456054637,5.3056,3578.0,3577.9,7.07487516]
[1754456055836,5.3056,3578.0,3577.9,4.28]
[1754456056626,5.3056,3578.0,3577.8,2.79698412]
[1754456056816,0.9296,3577.9,3577.8,2.79698412]
[1754456057142,5.1656,3577.9,3577.8,2.79698412]
[1754456058541,5.1656,3577.9,3577.8,0.002]
[1754456059109,5.1656,3577.9,3577.8,2.79701369]
[1754456060145,5.1656,3577.9,3577.8,0.002]
[1754456060749,5.69726,3577.9,3577.8,0.002]
[1754456062848,5.23696,3577.9,3577.8,0.002]
[1754456063342,5.69726,3577.9,3577.8,0.002]
[1754456067324,38.49219557,3577.9,3577.8,0.002]
[1754456067740,38.60413157,3577.9,3577.8,0.002]
[1754456068548,41.60413157,3577.9,3577.8,0.002]
[1754456069750,42.15413157,3577.9,3577.8,0.002]
[1754456071856,12.15413157,3577.9,3577.8,0.002]
[1754456072044,42.15413157,3577.9,3577.8,0.002]
[1754456073060,66.08535445,3577.9,3577.8,0.002]